Cogmind - Beta 13 @@@ ROGUE MODE // 2024.04.15 @ 12:17:04 Player: Red_Zig Result: Destroyed by G-34 Mercenary with Small Laser Performance ------------- Evolutions (0) 0 Regions Visited (3) 600 Robots Destroyed (14) 70 Value Destroyed (392) 392 Prototype IDs (0) 0 Alien Tech Used (0) 0 Bonus (0) 0 TOTAL SCORE: 1062 Bonus ------- None Cogmind --------- Core Integrity 0/250 Matter 232/300 Energy 100/100 System Corruption 18% Temperature Cool (6) Movement Core (400) Ox7 Location -10/Subcaves Parts ------- > --- POWER (1) -------- (None) > --- PROPULSION (2) --- (None) > --- UTILITY (2) ------ Large Storage Unit > --- WEAPON (2) ------- Battle Rifle > --- INVENTORY (15) --- Ion Engine Light Ion Engine Structural Scanner Sensor Array Light Armor Plating Assault Rifle Light Assault Rifle Light Assault Rifle Mining Laser Scrap Shield Fragment (46) Peak State ------------ > --- POWER ------------ Light Nuclear Core > --- PROPULSION ------- Light Treads Light Treads > --- UTILITY ---------- Small Storage Unit Targeting Computer > --- WEAPON ----------- Medium Laser Assault Rifle > --- INVENTORY -------- Ion Engine Light Ion Engine Aluminum Leg Aluminum Leg Sensor Array [Rating: 9] Favorites ----------- Power Ion Engine Engine Ion Engine Power Core Light Nuclear Core Propulsion Light Treads Treads Light Treads Leg Aluminum Leg Utility Small Storage Unit Storage Small Storage Unit Processor Targeting Computer Weapon Assault Rifle Energy Gun Medium Laser Ballistic Gun Assault Rifle Special Weapon Mining Laser Build | -11 -10 -10 -10 ------- Run | Yrd Mat Min Sub Slots Evolved . | . . . . Power . | . . . . Propulsion . | . . . . Utility . | . . . . Weapon . | . . . . Parts Attached 20 | 7 5 5 3 Power 2 | 1 1 . . Engine 1 | 1 . . . Core 1 | . 1 . . Reactor . | . . . . Propulsion 4 | 2 . 2 . Treads 2 | 2 . . . Leg 2 | . . 2 . Wheel . | . . . . Hover . | . . . . Flight . | . . . . Utility 3 | 1 2 . . Device . | . . . . Storage 2 | 1 1 . . Processor 1 | . 1 . . Hackware . | . . . . Protection . | . . . . Artifact . | . . . . Weapon 11 | 3 2 3 3 Energy Gun 2 | 2 . . . Energy Cannon . | . . . . Ballistic Gun 8 | 1 2 2 3 Ballistic Cannon . | . . . . Launcher . | . . . . Special Weapon 1 | . . 1 . Impact Weapon . | . . . . Slashing Weapon . | . . . . Piercing Weapon . | . . . . Special Melee Weapon . | . . . . Unidentified Prototypes . | . . . . Parts Lost 9 | . . 6 3 Power 1 | . . 1 . Propulsion 4 | . . 2 2 Utility 1 | . . 1 . Weapon 3 | . . 2 1 Highest Loss Streak 6 | . . 6 2 To Critical Strikes . | . . . . Average Slot Usage (%) 84 | . 99 83 67 Engine 1 | . 4 . . Core 6 | . 9 7 . Treads 15 | . 28 14 . Leg 11 | . . 12 24 Storage 14 | . 14 14 14 Processor 7 | . 13 7 . Energy Gun 1 | . 4 . . Ballistic Gun 25 | . 23 25 27 Naked Turns . | . . . . Heaviest Build 28 | 14 28 28 26 Greatest Support 40 | 40 40 40 20 Greatest Overweight (x) 2 | . . 1 2 Average Overweight (x) . | . . . 1 Largest Inventory Capacity 15 | 8 15 15 15 Average Capacity 9 | 7 10 15 15 Most Carried 10 | 3 8 8 10 Average Carried 3 | 2 5 6 8 Final Capacity 15 | 8 15 15 15 Final Carried 10 | 3 8 7 10 Class Distribution -------------------- 100% | Mutant Dominant Class ---------------- Mutant | -10/Materials Mutant | -10/Mines Mutant | -10/Subcaves Resources | -11 -10 -10 -10 ----------- Run | Yrd Mat Min Sub Matter Collected 671 | 257 170 123 121 Remotely . | . . . . Salvage Created 555 | . 327 121 107 Parts 34 | . 22 4 8 Haulers Intercepted . | . . . . Recyclers Shooed 1 | . 1 . . Parts Field Recycled . | . . . . Retrieved Matter . | . . . . Parts Self-Destructed 3 | . . . 3 Prevented . | . . . . Kills | -11 -10 -10 -10 ------- Run | Yrd Mat Min Sub Combat Hostiles Destroyed 18 | . 8 7 3 Guns 18 | . 8 7 3 Classes Destroyed 6 | . 3 2 1 Tunneler 1 | . . 1 . Watcher 2 | . 2 . . Swarmer 3 | . 3 . . Grunt 6 | . 5 . 1 Subdweller 2 | . . . 2 Assembled 7 | . . 7 . Best Kill Streak 4 | . 3 4 1 Combat Bots Only 4 | . 3 4 1 Max Kills in Single Turn 1 | . 1 1 1 Gunslinging . | . . . . Exploded . | . . . . Melee . | . . . . Uniques/NPCs Destroyed . | . . . . Combat | -11 -10 -10 -10 -------- Run | Yrd Mat Min Sub Hostile Shots Fired 113 | . 48 33 32 Missed 29 | . 17 8 4 Damage Taken 1218 | . 331 402 485 Core 258 | . 27 80 151 Absorbed by Shields . | . . . . Core Remaining (%) 100 | 100 . . . Volleys Fired 76 | . 34 24 18 Largest 2 | . 2 2 2 Hottest 100 | . 70 100 55 Shots Fired 138 | . 68 34 36 Gun 133 | . 68 29 36 Cannon . | . . . . Launcher . | . . . . Special 5 | . . 5 . Kinetic 116 | . 51 29 36 Thermal 22 | . 17 5 . Explosive . | . . . . Electromagnetic . | . . . . Robot Hit Streak 14 | . 7 8 14 Robot Miss Streak 4 | . 3 4 3 Penetration Max . | . . . . Secondary Targets 3 | . 2 1 . Max Gunslinging Chain 1 | . 1 1 . Shots Hit Robots 87 | . 42 19 26 Core Hits 39 | . 22 11 6 Critical Kills . | . . . . Critical Parts Destroyed . | . . . . Critical Strikes 2 | . 2 . . Burn 2 | . 2 . . Melee Attacks . | . . . . Impact . | . . . . Slashing . | . . . . Piercing . | . . . . Sneak Attacks . | . . . . Combat Hostiles . | . . . . Follow-up Attacks . | . . . . Damage Inflicted 1154 | . 478 214 462 Guns 1154 | . 478 214 462 Cannons . | . . . . Explosions . | . . . . Melee . | . . . . Ramming . | . . . . Kinetic 1015 | . 339 214 462 Thermal 139 | . 139 . . Explosive . | . . . . Electromagnetic . | . . . . Impact . | . . . . Slashing . | . . . . Piercing . | . . . . Highest Corruption 18 | . . 18 18 Average Corruption 17 | . . 17 18 Corruption Purged . | . . . . Corruption Blocked . | . . . . Effects 41 | . . 13 28 Message Errors 6 | . . 3 3 Matter Fused 14 | . . 4 10 Heat Flow Errors 5 | . . 2 3 Energy Discharges 4 | . . 1 3 Data Loss (minor) 5 | . . 2 3 Data Loss (major) 2 | . . 1 1 Misfires 2 | . . . 2 Alerts 1 | . . . 1 Misdirections 1 | . . . 1 Weapon Failures 1 | . . . 1 Overload Shots . | . . . . Overflow Damage . | . . . . Projectiles . | . . . . Explosions . | . . . . Melee . | . . . . Knockbacks . | . . . . Impact . | . . . . Kinetic . | . . . . Secondary . | . . . . Self-Inflicted Damage . | . . . . Shots . | . . . . Rammed . | . . . . Targets Rammed . | . . . . Kicked . | . . . . Crushed . | . . . . Highest Temperature 226 | . 150 158 226 Average Temperature 52 | . 44 44 121 Received Heat Transfer 325 | . 138 40 147 Siege Activations . | . . . . Robots Corrupted . | . . . . Combat Hostiles . | . . . . Parts Fried . | . . . . Impact Corruptions . | . . . . Robots Melted . | . . . . Combat Hostiles . | . . . . Parts Melted . | . . . . Heat Transferred 555 | . 555 . . Parts Sabotaged . | . . . . Parts Stolen . | . . . . Parts Stripped . | . . . . Power Chain Reactions . | . . . . Alert | -11 -10 -10 -10 ------- Run | Yrd Mat Min Sub Peak Influence 180 | . 180 37 . Initial 22 | . . 22 . Average 6 | . 59 11 . Maximum Alert Level . | . . . . Low Security (%) 100 | 100 100 100 . Level 1 . | . . . . Level 2 . | . . . . Level 3 . | . . . . Level 4 . | . . . . Level 5 . | . . . . High Security . | . . . . Max Security . | . . . . Squads Dispatched 1 | . 1 . . Investigation 1 | . 1 . . Extermination . | . . . . Reinforcement . | . . . . Assault . | . . . . Garrison . | . . . . Intercept . | . . . . Searches Triggered . | . . . . Construction Impeded . | . . . . Haulers Reinforced . | . . . . Active Scanning Responses . | . . . . Cargo Convoy Interrupts . | . . . . Stealth | -11 -10 -10 -10 --------- Run | Yrd Mat Min Sub Distress Signals 4 | . 3 1 . Communications Jammed . | . . . . Distress Signals . | . . . . Times Spotted 24 | . 13 7 4 Peak Tracking Total 4 | . 4 4 2 Tactical Retreats 1 | . . 1 . Traps | -11 -10 -10 -10 ------- Run | Yrd Mat Min Sub Traps Triggered 1 | . 1 . . Indirectly . | . . . . Trap Hack Attempts . | . . . . Triggered . | . . . . Disarmed . | . . . . Reprogrammed . | . . . . Reused . | . . . . Traps Extracted . | . . . . Installed . | . . . . Triggered . | . . . . Machines | -11 -10 -10 -10 ---------- Run | Yrd Mat Min Sub Machines Disabled . | . . . . Max in Single Turn . | . . . . Machines Repaired . | . . . . Machines Dismantled . | . . . . Machines Sabotaged . | . . . . Overloaded Fab Kills . | . . . . Hacking | -11 -10 -10 -10 --------- Run | Yrd Mat Min Sub Machines Accessed 1 | . 1 . . Terminals 1 | . 1 . . Fabricators . | . . . . Repair Stations . | . . . . Recycling Units . | . . . . Scanalyzers . | . . . . Garrison Access . | . . . . Total Hacks 1 | . 1 . . Successful 1 | . 1 . . Failed . | . . . . Catastrophic . | . . . . Database Lockouts . | . . . . Manual 1 | . 1 . . Terminals 1 | . 1 . . Fabricators . | . . . . Repair Stations . | . . . . Recycling Units . | . . . . Scanalyzers . | . . . . Garrison Access . | . . . . Terminal Hacks 1 | . 1 . . Level Access Points 1 | . 1 . . Fabricator Hacks . | . . . . Repair Station Hacks . | . . . . Recycling Unit Hacks . | . . . . Scanalyzer . | . . . . Garrison Access Hacks . | . . . . Unauthorized Hacks . | . . . . Terminals . | . . . . Fabricators . | . . . . Repair Stations . | . . . . Recycling Units . | . . . . Scanalyzers . | . . . . Garrison Access . | . . . . Data Cores Recovered . | . . . . Used . | . . . . Hacking Detections . | . . . . Full Trace Events . | . . . . Feedback Events . | . . . . Feedback Blocked . | . . . . Robot Schematics Acquired . | . . . . Robots Built . | . . . . Authchips . | . . . . Time . | . . . . Total Robot Build Rating . | . . . . Part Schematics Acquired . | . . . . Parts Built . | . . . . Authchips . | . . . . Time . | . . . . Total Part Build Rating . | . . . . Parts Repaired . | . . . . Time . | . . . . Parts Recycled . | . . . . Recycled Matter . | . . . . Retrieved Matter . | . . . . Retrieved Components . | . . . . Parts Scanalyzed . | . . . . Part Schematics Acquired . | . . . . Parts Damaged . | . . . . Bothacking | -11 -10 -10 -10 ------------ Run | Yrd Mat Min Sub Used RIF Installer . | . . . . Robots Hacked . | . . . . Non-combat . | . . . . Combat . | . . . . Robot Hacks Applied . | . . . . Relay Couplers Released . | . . . . Fabnet Peak Effective % . | . . . . Robots Rewired . | . . . . Allies Hacked . | . . . . Hacks Repelled . | . . . . Allies | -11 -10 -10 -10 -------- Run | Yrd Mat Min Sub Total Allies . | . . . . Largest Group . | . . . . Highest-Rated Group . | . . . . Highest-Rated Ally . | . . . . Total Orders . | . . . . Ally Attacks . | . . . . Total Damage . | . . . . Kills . | . . . . Allies Corrupted . | . . . . Allies Melted . | . . . . Intel | -11 -10 -10 -10 ------- Run | Yrd Mat Min Sub Robot Analysis Total . | . . . . Derelict Logs Recovered 3 | . . 2 1 Drone Launches . | . . . . Drone Recoveries . | . . . . Exploration | -11 -10 -10 -10 ------------- Run | Yrd Mat Min Sub Turns Passed 7960 | 6109 688 643 520 Spaces Moved 2590 | 1685 359 320 226 Core 1 | 1 . . . Treads 2233 | 1684 359 190 . Legs 356 | . . 130 226 Wheels . | . . . . Hover . | . . . . Flight . | . . . . Fastest Speed 50 | 50 160 160 190 Average Speed 165 | 159 160 172 200 Slowest Speed 260 | 160 160 190 260 Overloaded Moves . | . . . . Propulsion Burnouts . | . . . . Robots Hopped . | . . . . Cave-ins Triggered . | . . . . Exploration Rate (%) 69 | 102 73 78 23 Regions Visited 3 Branch Regions 2 Pre-discovered Areas 1 | . . . 1 Known Exits Taken 1 | . . 1 . Unknown Exits Taken 2 | 1 1 . . Scrap Searched 2 | . . 1 1 Spaces Dug . | . . . . Terrain Destroyed 1 | . . 1 . Melee . | . . . . Projectile 1 | . . 1 . AOE . | . . . . Terrain Rammed . | . . . . Walls Destroyed . | . . . . Machines Disabled . | . . . . Actions | -11 -10 -10 -10 --------- Run | Yrd Mat Min Sub Total 6130 | 5096 407 369 258 Wait 3435 | 3401 5 19 10 Move 2587 | 1684 358 319 226 Hop . | . . . . Pick Up 9 | 3 3 2 1 Fast Attach 10 | 7 2 1 . Attach 3 | . . 3 . Detach . | . . . . Swap 7 | . 3 1 3 Drop 3 | 1 2 . . Fire 76 | . 34 24 18 Melee . | . . . . Ram . | . . . . Kick . | . . . . Crush . | . . . . Escape Stasis . | . . . . Rewire . | . . . . Trap . | . . . . Miscellaneous . | . . . . Route ------- -11/Scrapyard -10/Materials (discovered 4 exits: *Mat x3 / [*Min]) -10/Mines (discovered 3 exits: *Mat x2 / *Sub) -10/Subcaves (discovered 1 exit: [*Mat]) History --------- Turn | Location | Event 10 | -11/Scrapyard | Discovered new exit (range 15) 6110 | -11/Scrapyard | Entered Materials 6111 | -10/Materials | Build established: Mutant 6230 | -10/Materials | Identified exit to Materials 6756 | -10/Materials | Discovered new exit (range 7) 6798 | -10/Materials | Entered Mines 6863 | -10/Mines | Discovered exit to Materials (range 4) 6922 | -10/Mines | Discovered exit to Materials (range 11) 6999 | -10/Mines | Found a damaged Exp. Sensor Array with a note attached 7027 | -10/Mines | Assembled infested the area 7030 | -10/Mines | Learned Materials garrison access intel 7055 | -10/Mines | Identified exit to Subcaves 7126 | -10/Mines | System corruption reached 10% 7167 | -10/Mines | Lost 6 parts (1p2n1u2w) 7441 | -10/Mines | Entered Subcaves 7797 | -10/Subcaves | Discovered new exit (range 8) 7822 | -10/Subcaves | Core integrity fell below 50% 7840 | -10/Subcaves | Core integrity fell below 20% 7961 | -10/Subcaves | Destroyed by G-34 Mercenary with Small Laser Last Messages --------------- 07860_ Acquired 26 matter. 07867_ Subatomizers dissect the Sub. Optics. 07868_ Acquired 14 matter. 07876_ System corrupted: Heat flow error (+267). 07882_ Subatomizers dissect the Sub. Optics. 07899_ System corrupted: Matter fused (-9). 07936_ Subatomizers dissect the Sub. Power Source. 07944_ System corrupted: Matter fused (-10). 07951_ G-47 Trooper destroyed. 07953_ Aluminum Leg destroyed. 07956_ Particle Gun fries itself beyond repair. 07956_ Lgt. Nuclear Core fries itself beyond repair. 07957_ System corrupted: Sub. Machine Gun jammed. 07959_ Sub. Machine Gun destroyed. 07961_ System corrupted: Matter fused (-5). 07961_ Aluminum Leg fries itself beyond repair. Map ----- +----------------------------------------------------+ | ?????????????????????????????????????????????????? | | ?????????????????????????????????????????????????? | | ?????????????????????????????????????????????????? | | ?????????????????????????????????????????????????? | | ?????????????????????????????????????????????????? | | ?????????????????????????????????????????????????? | | ??????????????##?????????????????????????????????? | | ??????????????# ???##???????????????????????????? | | ??????????????# % ?## #??????????????????????????? | | ??????????????# ## ###???????????????????????? | | ??????????????# % %#???????????????????????? | | ??????????????#% % #??????????? ###????????? | | ???????????????# #?????????? ????????? | | ??????????????##% % ######???? ?????????? | | ??????????????# ???? ??????????? | | ???????????????? ????? #???????????? | | ???????????????????# #????? #???????????? | | ???????????????###??# ##???? #???????????? | | #?????????????## ##?# ##?? #????????????? | | ########??????# ### % #?# #?????????????? | | #???#### ## ## #??????????????? | | ##### #! ## #??????????????? | | ##### ## ! <""" "### #??????????????? | | #?# ### " " #""#### ####??????????????? | | # ## ## "#"#"" ####?# #?????????????????? | | "" "" #???# @ ##?????????????????? | | ## " ### "" # ## ###??????????????????? | | #### ###?"" " " #????????????????????? | | ???###### ##???""" %[ #???????????????????? | | ????????###???? ##" ### ##%g #??????????????????? | | ?????????????????####?###?# ##??????????????????? | | ?????????????????????????? ???????????????????? | | ??????????????????????????# ??????????????????? | | ??????????????????????????#% ##?????????????????? | | ??????????????????????????#&& ??????????????????? | | ??????????????????????????#%&& ??????????????????? | | ???????????????????????????*&###?????????????????? | | ???????????????????????????""#???????????????????? | | ???????????????????????????""#???????????????????? | | ???????????????????????????""#???????????????????? | | ?????????????????????????????????????????????????? | | ?????????????????????????????????????????????????? | | ?????????????????????????????????????????????????? | | ?????????????????????????????????????????????????? | | ?????????????????????????????????????????????????? | | ?????????????????????????????????????????????????? | | ?????????????????????????????????????????????????? | | ?????????????????????????????????????????????????? | | ?????????????????????????????????????????????????? | | ?????????????????????????????????????????????????? | +----------------------------------------------------+ Best States ------------- Heat Dissipation 25 Energy Generation 14 Energy Capacity 250 Matter Stores 300 Matter Capacity 300 Sight Range 16 Terrain Scan Density 10 Evasion (%) 40 Targeting Accuracy 5 Recoil Reduction 2 Item Schematics ----------------- None Robot Schematics ------------------ None Fabricated ------------ Nothing Alien Tech Used ----------------- None Achievements -------------- None Challenges ------------ None Game ------ Seed SigixMultitargetingCloak Manual? 0 Play Time 00:22:02 Cumulative 26.6 hours Start 2024.04.15 @ 11:58:06 End 2024.04.15 @ 12:17:04 Sessions 1 Manual Loads 0 Difficulty Rogue Special Mode None Game No. 27 Rogue 15 Adventurer 12 Explorer 0 Win Type - Total 0 Types 0/0/0/0/0/0/0/0/0 Lore% 15 Gallery% 27 Achievement% 23 Wizard Run 0 Options --------- Layout 2 ASCII 0 Keyboard 0 Movement Mouse Keybinds 0 Fullscreen 1 Font 24/Smallcaps Map View 50x44 Zoom Use 1% Tactical HUD 1 Map Filters NONE Filters NONE Steam 1 RUN: 8969ce23-56fe-4166-9d44-a1c0b7ef70ab